[Event "Titled Tuesday Blitz November 14 Early 2023"]
[White "Shishkov, Andrei"]
[Black "Danielyan, Vahe"]
[WhiteFideId "4500563"]
[BlackFideId "13304828"]
[WhiteElo "2490"]
[BlackElo "2699"]
[Result "0-1"]
[Round "4"]
[TimeControl "180+1"]
[Date "2023.11.14"]
[WhiteClock "0:00:10"]
[BlackClock "0:00:55"]
[Board "88"]

1. d4 {[%clk 0:03:00]}  Nf6 {[%clk 0:02:57]} 2. c4 {[%clk 0:03:00]}  g6 {[%clk 0:02:58]} 3. f3 {[%clk 0:03:01]}  Bg7 {[%clk 0:02:55]} 4. e4 {[%clk 0:03:01]}  d6 {[%clk 0:02:56]} 5. Be3 {[%clk 0:03:01]}  O-O {[%clk 0:02:56]} 6. Nc3 {[%clk 0:03:02]}  e5 {[%clk 0:02:56]} 7. d5 {[%clk 0:03:02]}  Nh5 {[%clk 0:02:56]} 8. Qd2 {[%clk 0:03:02]}  Qh4+ {[%clk 0:02:56]} 9. g3 {[%clk 0:03:02]}  Nxg3 {[%clk 0:02:54]} 10. Qf2 {[%clk 0:03:01]}  Nxf1 {[%clk 0:02:54]} 11. Qxh4 {[%clk 0:03:01]}  Nxe3 {[%clk 0:02:54]} 12. Qf2 {[%clk 0:02:49]}  Nxc4 {[%clk 0:02:53]} 13. h4 {[%clk 0:02:50]}  Na6 {[%clk 0:02:38]} 14. h5 {[%clk 0:02:47]}  Bd7 {[%clk 0:02:11]} 15. b3 {[%clk 0:02:27]}  Nb6 {[%clk 0:02:06]} 16. Nh3 {[%clk 0:02:00]}  Nc5 {[%clk 0:02:02]} 17. O-O-O {[%clk 0:01:51]}  a5 {[%clk 0:01:57]} 18. Kb2 {[%clk 0:01:36]}  a4 {[%clk 0:01:55]} 19. Ng5 {[%clk 0:01:31]}  h6 {[%clk 0:01:50]} 20. Nh3 {[%clk 0:01:02]}  g5 {[%clk 0:01:49]} 21. Qe2 {[%clk 0:00:57]}  f5 {[%clk 0:01:41]} 22. Nf2 {[%clk 0:00:52]}  fxe4 {[%clk 0:01:27]} 23. Nfxe4 {[%clk 0:00:53]}  Rf4 {[%clk 0:01:24]} 24. Nxc5 {[%clk 0:00:49]}  dxc5 {[%clk 0:01:25]} 25. Ne4 {[%clk 0:00:46]}  Raf8 {[%clk 0:01:21]} 26. Rhf1 {[%clk 0:00:36]}  Be8 {[%clk 0:01:15]} 27. Nxc5 {[%clk 0:00:25]}  e4+ {[%clk 0:01:12]} 28. Ka3 {[%clk 0:00:25]}  exf3 {[%clk 0:01:13]} 29. Qe6+ {[%clk 0:00:19]}  Bf7 {[%clk 0:01:13]} 30. Qe7 {[%clk 0:00:18]}  Nxd5 {[%clk 0:01:11]} 31. Rxd5 {[%clk 0:00:16]}  Bxd5 {[%clk 0:01:11]} 32. Qxc7 {[%clk 0:00:15]}  axb3 {[%clk 0:01:08]} 33. axb3 {[%clk 0:00:14]}  Ra8+ {[%clk 0:01:01]} 34. Na4 {[%clk 0:00:13]}  b5 {[%clk 0:01:00]} 35. Qd7 {[%clk 0:00:10]}  Raxa4+ {[%clk 0:00:54]} 36. bxa4 {[%clk 0:00:10]}  Rxa4# {[%clk 0:00:55]} 0-1


[Site "https://www.chess.com"]

[Event "Titled Tuesday Blitz November 14 Early 2023"]
[White "Rozman, Levy"]
[Black "Pinero Rodriguez, Carlos Jose"]
[WhiteFideId "2039877"]
[BlackFideId "3901726"]
[WhiteElo "2698"]
[BlackElo "2487"]
[Result "1-0"]
[Round "4"]
[TimeControl "180+1"]
[Date "2023.11.14"]
[WhiteClock "0:01:02"]
[BlackClock "0:00:58"]
[Board "89"]

1. e4 {[%clk 0:03:00]}  c5 {[%clk 0:02:59]} 2. a3 {[%clk 0:03:00]}  e6 {[%clk 0:02:56]} 3. b4 {[%clk 0:03:00]}  b6 {[%clk 0:02:57]} 4. b5 {[%clk 0:02:59]}  Bb7 {[%clk 0:02:56]} 5. Nc3 {[%clk 0:02:56]}  d5 {[%clk 0:02:56]} 6. exd5 {[%clk 0:02:42]}  exd5 {[%clk 0:02:57]} 7. d4 {[%clk 0:02:41]}  Nf6 {[%clk 0:02:50]} 8. Nf3 {[%clk 0:02:41]}  Be7 {[%clk 0:02:48]} 9. Bd3 {[%clk 0:02:39]}  O-O {[%clk 0:02:47]} 10. O-O {[%clk 0:02:39]}  Nbd7 {[%clk 0:02:31]} 11. Re1 {[%clk 0:02:37]}  Re8 {[%clk 0:02:21]} 12. Bf4 {[%clk 0:02:29]}  g6 {[%clk 0:02:17]} 13. h3 {[%clk 0:02:28]}  c4 {[%clk 0:02:16]} 14. Bf1 {[%clk 0:02:27]}  a6 {[%clk 0:02:12]} 15. Ne5 {[%clk 0:02:21]}  axb5 {[%clk 0:02:04]} 16. Nxb5 {[%clk 0:02:21]}  Nxe5 {[%clk 0:01:59]} 17. Bxe5 {[%clk 0:02:19]}  Rc8 {[%clk 0:01:47]} 18. Qf3 {[%clk 0:02:06]}  Ne4 {[%clk 0:01:40]} 19. Qf4 {[%clk 0:01:36]}  Qd7 {[%clk 0:01:31]} 20. Nc7 {[%clk 0:01:31]}  f6 {[%clk 0:01:16]} 21. Nxe8 {[%clk 0:01:08]}  fxe5 {[%clk 0:01:14]} 22. Qxe5 {[%clk 0:01:03]}  Rxe8 {[%clk 0:00:58]} 23. Rxe4 {[%clk 0:01:02]} 1-0


[Site "https://www.chess.com"]

[Event "Titled Tuesday Blitz November 14 Early 2023"]
[White "arenal72"]
[Black "Akhmedinov, Satbek"]
[BlackFideId "13714287"]
[WhiteElo "2477"]
[BlackElo "2694"]
[Result "1-0"]
[Round "4"]
[TimeControl "180+1"]
[Date "2023.11.14"]
[WhiteClock "0:00:04"]
[BlackClock "0:00:08"]
[Board "92"]

1. Nf3 {[%clk 0:03:00]}  Nf6 {[%clk 0:03:00]} 2. g3 {[%clk 0:02:51]}  b6 {[%clk 0:03:01]} 3. Bg2 {[%clk 0:02:51]}  Bb7 {[%clk 0:03:01]} 4. O-O {[%clk 0:02:52]}  e6 {[%clk 0:03:02]} 5. c4 {[%clk 0:02:51]}  d5 {[%clk 0:03:02]} 6. d3 {[%clk 0:02:49]}  Be7 {[%clk 0:03:01]} 7. b3 {[%clk 0:02:49]}  Nbd7 {[%clk 0:03:02]} 8. Bb2 {[%clk 0:02:49]}  O-O {[%clk 0:03:02]} 9. Nbd2 {[%clk 0:02:48]}  c5 {[%clk 0:03:03]} 10. Qc2 {[%clk 0:02:48]}  d4 {[%clk 0:03:03]} 11. Rad1 {[%clk 0:02:45]}  e5 {[%clk 0:03:02]} 12. e3 {[%clk 0:02:40]}  Qc7 {[%clk 0:02:57]} 13. e4 {[%clk 0:02:32]}  h6 {[%clk 0:02:54]} 14. Bh3 {[%clk 0:02:23]}  g5 {[%clk 0:02:49]} 15. Bf5 {[%clk 0:02:19]}  Nh5 {[%clk 0:02:46]} 16. Rfe1 {[%clk 0:02:11]}  Ng7 {[%clk 0:02:44]} 17. g4 {[%clk 0:02:05]}  Nxf5 {[%clk 0:02:43]} 18. gxf5 {[%clk 0:02:06]}  g4 {[%clk 0:02:43]} 19. Kh1 {[%clk 0:02:05]}  gxf3 {[%clk 0:02:43]} 20. Nxf3 {[%clk 0:02:04]}  Kh7 {[%clk 0:02:44]} 21. Qd2 {[%clk 0:02:03]}  Rg8 {[%clk 0:02:43]} 22. Rg1 {[%clk 0:02:02]}  Qd6 {[%clk 0:02:44]} 23. Bc1 {[%clk 0:02:00]}  Qf6 {[%clk 0:02:37]} 24. h3 {[%clk 0:02:00]}  Rxg1+ {[%clk 0:02:34]} 25. Rxg1 {[%clk 0:01:59]}  Rg8 {[%clk 0:02:35]} 26. Rxg8 {[%clk 0:01:56]}  Kxg8 {[%clk 0:02:36]} 27. Qxh6 {[%clk 0:01:56]}  Qxh6 {[%clk 0:02:37]} 28. Bxh6 {[%clk 0:01:55]}  a5 {[%clk 0:02:33]} 29. a4 {[%clk 0:01:52]}  Bf6 {[%clk 0:02:32]} 30. Kg2 {[%clk 0:01:51]}  Nb8 {[%clk 0:02:32]} 31. Kf1 {[%clk 0:01:44]}  Nc6 {[%clk 0:02:32]} 32. Ke2 {[%clk 0:01:40]}  Ne7 {[%clk 0:02:32]} 33. h4 {[%clk 0:01:38]}  Kh7 {[%clk 0:02:31]} 34. Bg5 {[%clk 0:01:37]}  Bxg5 {[%clk 0:02:29]} 35. hxg5 {[%clk 0:01:38]}  Kg8 {[%clk 0:02:27]} 36. Nh2 {[%clk 0:01:33]}  Nc6 {[%clk 0:02:27]} 37. Ng4 {[%clk 0:01:29]}  Kf8 {[%clk 0:02:27]} 38. f3 {[%clk 0:01:27]}  Ke7 {[%clk 0:02:26]} 39. Nf6 {[%clk 0:01:26]}  Nb4 {[%clk 0:02:26]} 40. Ng4 {[%clk 0:01:25]}  Na2 {[%clk 0:02:22]} 41. Kd2 {[%clk 0:01:19]}  Kd6 {[%clk 0:02:21]} 42. Nh6 {[%clk 0:01:19]}  Ke7 {[%clk 0:02:17]} 43. f6+ {[%clk 0:01:17]}  Ke6 {[%clk 0:02:11]} 44. Nf5 {[%clk 0:01:12]}  Nb4 {[%clk 0:02:03]} 45. Ke2 {[%clk 0:00:56]}  Nc6 {[%clk 0:02:01]} 46. Kf2 {[%clk 0:00:55]}  Nb8 {[%clk 0:02:01]} 47. Ng7+ {[%clk 0:00:53]}  Kd7 {[%clk 0:02:00]} 48. Nf5 {[%clk 0:00:43]}  Na6 {[%clk 0:01:55]} 49. g6 {[%clk 0:00:41]}  fxg6 {[%clk 0:01:47]} 50. f7 {[%clk 0:00:42]}  gxf5 {[%clk 0:01:48]} 51. f8=Q {[%clk 0:00:42]}  fxe4 {[%clk 0:01:47]} 52. fxe4 {[%clk 0:00:42]}  Nb4 {[%clk 0:01:47]} 53. Ke2 {[%clk 0:00:43]}  Nc6 {[%clk 0:01:47]} 54. Qf7+ {[%clk 0:00:40]}  Kc8 {[%clk 0:01:47]} 55. Qe6+ {[%clk 0:00:38]}  Kb8 {[%clk 0:01:47]} 56. Kf3 {[%clk 0:00:37]}  Ka7 {[%clk 0:01:47]} 57. Kf2 {[%clk 0:00:33]}  Nb4 {[%clk 0:01:46]} 58. Ke2 {[%clk 0:00:32]}  Nc6 {[%clk 0:01:46]} 59. Qd7 {[%clk 0:00:32]}  Nb4 {[%clk 0:01:46]} 60. Qc7 {[%clk 0:00:31]}  Nc6 {[%clk 0:01:47]} 61. Kd2 {[%clk 0:00:31]}  Ka6 {[%clk 0:01:47]} 62. Qg7 {[%clk 0:00:28]}  Ba8 {[%clk 0:01:47]} 63. Ke2 {[%clk 0:00:27]}  Bb7 {[%clk 0:01:47]} 64. Kf2 {[%clk 0:00:27]}  Bc8 {[%clk 0:01:46]} 65. Qf8 {[%clk 0:00:25]}  Bb7 {[%clk 0:01:41]} 66. Kg3 {[%clk 0:00:24]}  Nb4 {[%clk 0:01:41]} 67. Qf3 {[%clk 0:00:23]}  Na2 {[%clk 0:01:39]} 68. Kh4 {[%clk 0:00:22]}  Nb4 {[%clk 0:00:54]} 69. Kg5 {[%clk 0:00:21]}  Nc6 {[%clk 0:00:54]} 70. Kf6 {[%clk 0:00:21]}  Bc8 {[%clk 0:00:53]} 71. Qg3 {[%clk 0:00:20]}  Kb7 {[%clk 0:00:52]} 72. Kf7 {[%clk 0:00:20]}  Bd7 {[%clk 0:00:51]} 73. Kf8 {[%clk 0:00:20]}  Kc7 {[%clk 0:00:51]} 74. Qg5 {[%clk 0:00:19]}  Kd6 {[%clk 0:00:50]} 75. Qf6+ {[%clk 0:00:19]}  Kc7 {[%clk 0:00:51]} 76. Kf7 {[%clk 0:00:19]}  Kc8 {[%clk 0:00:51]} 77. Qg5 {[%clk 0:00:17]}  Kc7 {[%clk 0:00:52]} 78. Qf6 {[%clk 0:00:17]}  Kb7 {[%clk 0:00:51]} 79. Kg6 {[%clk 0:00:16]}  Kc8 {[%clk 0:00:44]} 80. Qg7 {[%clk 0:00:13]}  Nb4 {[%clk 0:00:44]} 81. Qxe5 {[%clk 0:00:10]}  Nxd3 {[%clk 0:00:43]} 82. Qd6 {[%clk 0:00:10]}  Nf2 {[%clk 0:00:39]} 83. e5 {[%clk 0:00:07]}  Ne4 {[%clk 0:00:32]} 84. Qd5 {[%clk 0:00:06]}  Be8+ {[%clk 0:00:24]} 85. Kg7 {[%clk 0:00:05]}  Ng3 {[%clk 0:00:19]} 86. Kf8 {[%clk 0:00:04]}  Bg6 {[%clk 0:00:10]} 87. Qc6+ {[%clk 0:00:04]}  Kb8 {[%clk 0:00:10]} 88. Qxb6+ {[%clk 0:00:04]}  Ka8 {[%clk 0:00:10]} 89. Qxg6 {[%clk 0:00:04]}  Ne2 {[%clk 0:00:08]} 90. Qa6+ {[%clk 0:00:03]}  Kb8 {[%clk 0:00:08]} 91. Qb6+ {[%clk 0:00:03]}  Ka8 {[%clk 0:00:09]} 92. Qxa5+ {[%clk 0:00:04]}  Kb8 {[%clk 0:00:09]} 93. Qb5+ {[%clk 0:00:04]}  Ka8 {[%clk 0:00:10]} 94. e6 {[%clk 0:00:04]}  Nf4 {[%clk 0:00:09]} 95. e7 {[%clk 0:00:04]}  Ne6+ {[%clk 0:00:08]} 96. Kf7 {[%clk 0:00:04]} 1-0


[Site "https://www.chess.com"]

[Event "Titled Tuesday Blitz November 14 Early 2023"]
[White "Mladenovic, Stefan"]
[Black "Jesseinkman"]
[WhiteFideId "942227"]
[WhiteElo "2682"]
[BlackElo "2455"]
[Result "1-0"]
[Round "4"]
[TimeControl "180+1"]
[Date "2023.11.14"]
[WhiteClock "0:00:15"]
[BlackClock "0:00:02"]
[Board "94"]

1. d4 {[%clk 0:03:00]}  d5 {[%clk 0:03:00]} 2. Bf4 {[%clk 0:03:00]}  c5 {[%clk 0:02:57]} 3. e3 {[%clk 0:03:01]}  Nc6 {[%clk 0:02:58]} 4. Nf3 {[%clk 0:03:01]}  cxd4 {[%clk 0:02:58]} 5. exd4 {[%clk 0:03:00]}  Bf5 {[%clk 0:02:59]} 6. Nbd2 {[%clk 0:02:59]}  e6 {[%clk 0:02:59]} 7. c3 {[%clk 0:03:00]}  Bd6 {[%clk 0:02:59]} 8. Bxd6 {[%clk 0:03:00]}  Qxd6 {[%clk 0:03:00]} 9. Bb5 {[%clk 0:02:59]}  Ne7 {[%clk 0:02:58]} 10. O-O {[%clk 0:02:59]}  O-O {[%clk 0:02:58]} 11. Re1 {[%clk 0:02:59]}  h6 {[%clk 0:02:58]} 12. Ne5 {[%clk 0:02:58]}  Nxe5 {[%clk 0:02:56]} 13. dxe5 {[%clk 0:02:58]}  Qc7 {[%clk 0:02:51]} 14. Nf3 {[%clk 0:02:55]}  a6 {[%clk 0:02:49]} 15. Bf1 {[%clk 0:02:55]}  b5 {[%clk 0:02:48]} 16. Nd4 {[%clk 0:02:54]}  Bg6 {[%clk 0:02:45]} 17. a4 {[%clk 0:02:52]}  Nc6 {[%clk 0:02:16]} 18. axb5 {[%clk 0:02:44]}  axb5 {[%clk 0:02:15]} 19. Nxb5 {[%clk 0:02:41]}  Qb6 {[%clk 0:02:12]} 20. Rxa8 {[%clk 0:02:18]}  Rxa8 {[%clk 0:02:11]} 21. Qd2 {[%clk 0:02:17]}  Ra5 {[%clk 0:01:46]} 22. Na3 {[%clk 0:01:58]}  Qb8 {[%clk 0:01:15]} 23. c4 {[%clk 0:01:30]}  Qb4 {[%clk 0:00:51]} 24. Qxb4 {[%clk 0:01:17]}  Nxb4 {[%clk 0:00:52]} 25. cxd5 {[%clk 0:01:17]}  Rxd5 {[%clk 0:00:49]} 26. h3 {[%clk 0:00:59]}  Rd2 {[%clk 0:00:39]} 27. Nc4 {[%clk 0:00:58]}  Rc2 {[%clk 0:00:39]} 28. Rd1 {[%clk 0:00:51]}  Nd5 {[%clk 0:00:26]} 29. Rd2 {[%clk 0:00:21]}  Rc1 {[%clk 0:00:24]} 30. g3 {[%clk 0:00:21]}  Be4 {[%clk 0:00:13]} 31. f4 {[%clk 0:00:17]}  Nb4 {[%clk 0:00:08]} 32. Kf2 {[%clk 0:00:17]}  Bd5 {[%clk 0:00:05]} 33. Ne3 {[%clk 0:00:16]}  Rb1 {[%clk 0:00:04]} 34. Nxd5 {[%clk 0:00:16]}  Nxd5 {[%clk 0:00:04]} 35. Bc4 {[%clk 0:00:15]}  Nb6 {[%clk 0:00:03]} 36. Rd8+ {[%clk 0:00:15]}  Kh7 {[%clk 0:00:02]} 37. Bd3+ {[%clk 0:00:15]} 1-0


[Site "https://www.chess.com"]

[Event "Titled Tuesday Blitz November 14 Early 2023"]
[White "Mazurkiewicz, Michal"]
[Black "Arhan_Anand"]
[WhiteFideId "1124943"]
[WhiteElo "2447"]
[BlackElo "2673"]
[Result "1-0"]
[Round "4"]
[TimeControl "180+1"]
[Date "2023.11.14"]
[WhiteClock "0:00:05"]
[BlackClock "0:00:04"]
[Board "95"]

1. e4 {[%clk 0:02:58]}  c5 {[%clk 0:03:00]} 2. Nf3 {[%clk 0:02:57]}  d6 {[%clk 0:03:00]} 3. g3 {[%clk 0:02:57]}  Nf6 {[%clk 0:03:00]} 4. d3 {[%clk 0:02:57]}  g6 {[%clk 0:03:00]} 5. Bg2 {[%clk 0:02:57]}  Nc6 {[%clk 0:03:00]} 6. O-O {[%clk 0:02:58]}  Bg7 {[%clk 0:03:00]} 7. Re1 {[%clk 0:02:58]}  O-O {[%clk 0:03:00]} 8. e5 {[%clk 0:02:59]}  dxe5 {[%clk 0:02:58]} 9. Nxe5 {[%clk 0:03:00]}  Nxe5 {[%clk 0:02:54]} 10. Rxe5 {[%clk 0:03:00]}  Nd7 {[%clk 0:02:55]} 11. Re1 {[%clk 0:02:59]}  Rb8 {[%clk 0:02:53]} 12. Nc3 {[%clk 0:02:55]}  b5 {[%clk 0:02:47]} 13. h4 {[%clk 0:02:48]}  Bb7 {[%clk 0:02:45]} 14. h5 {[%clk 0:02:48]}  Bxg2 {[%clk 0:02:44]} 15. Kxg2 {[%clk 0:02:49]}  b4 {[%clk 0:02:33]} 16. Ne4 {[%clk 0:02:49]}  Qb6 {[%clk 0:02:31]} 17. Rh1 {[%clk 0:02:40]}  Qc6 {[%clk 0:02:26]} 18. f3 {[%clk 0:02:11]}  Ne5 {[%clk 0:02:17]} 19. Bf4 {[%clk 0:02:06]}  Rbd8 {[%clk 0:02:15]} 20. Qe2 {[%clk 0:01:51]}  Qd5 {[%clk 0:02:06]} 21. Rae1 {[%clk 0:01:45]}  Nc6 {[%clk 0:02:05]} 22. c3 {[%clk 0:01:25]}  f5 {[%clk 0:01:41]} 23. Ng5 {[%clk 0:01:18]}  e5 {[%clk 0:01:41]} 24. hxg6 {[%clk 0:00:38]}  hxg6 {[%clk 0:01:22]} 25. Bc1 {[%clk 0:00:31]}  Rd6 {[%clk 0:01:11]} 26. Kf1 {[%clk 0:00:29]}  Qxd3 {[%clk 0:01:10]} 27. Qxd3 {[%clk 0:00:28]}  Rxd3 {[%clk 0:01:11]} 28. Ne6 {[%clk 0:00:27]}  Rc8 {[%clk 0:01:07]} 29. Ke2 {[%clk 0:00:24]}  Rd5 {[%clk 0:01:04]} 30. Nxg7 {[%clk 0:00:21]}  Kxg7 {[%clk 0:01:05]} 31. Bh6+ {[%clk 0:00:20]}  Kg8 {[%clk 0:01:04]} 32. Bg5 {[%clk 0:00:19]}  Na5 {[%clk 0:01:00]} 33. Rh6 {[%clk 0:00:19]}  Rd6 {[%clk 0:00:48]} 34. Reh1 {[%clk 0:00:18]}  Kf7 {[%clk 0:00:47]} 35. Rh7+ {[%clk 0:00:18]}  Ke6 {[%clk 0:00:48]} 36. Rg7 {[%clk 0:00:15]}  Kd5 {[%clk 0:00:38]} 37. Rd1+ {[%clk 0:00:15]}  Kc6 {[%clk 0:00:38]} 38. Rxd6+ {[%clk 0:00:15]}  Kxd6 {[%clk 0:00:39]} 39. Rxg6+ {[%clk 0:00:16]}  Kd5 {[%clk 0:00:39]} 40. Rf6 {[%clk 0:00:15]}  Nc4 {[%clk 0:00:37]} 41. b3 {[%clk 0:00:10]}  Nd6 {[%clk 0:00:34]} 42. c4+ {[%clk 0:00:10]}  Kc6 {[%clk 0:00:34]} 43. Re6 {[%clk 0:00:07]}  Re8 {[%clk 0:00:33]} 44. Rxe8 {[%clk 0:00:06]}  Nxe8 {[%clk 0:00:34]} 45. Be3 {[%clk 0:00:05]}  Nf6 {[%clk 0:00:33]} 46. Bg5 {[%clk 0:00:05]}  Nd7 {[%clk 0:00:31]} 47. g4 {[%clk 0:00:05]}  fxg4 {[%clk 0:00:30]} 48. fxg4 {[%clk 0:00:06]}  Kd6 {[%clk 0:00:29]} 49. Ke3 {[%clk 0:00:06]}  Ke6 {[%clk 0:00:29]} 50. Ke4 {[%clk 0:00:06]}  a5 {[%clk 0:00:26]} 51. Bd8 {[%clk 0:00:04]}  Nb8 {[%clk 0:00:09]} 52. Bxa5 {[%clk 0:00:02]}  Nc6 {[%clk 0:00:10]} 53. Bc7 {[%clk 0:00:03]}  Kf6 {[%clk 0:00:09]} 54. g5+ {[%clk 0:00:03]}  Ke6 {[%clk 0:00:08]} 55. g6 {[%clk 0:00:03]}  Ne7 {[%clk 0:00:09]} 56. Bxe5 {[%clk 0:00:04]}  Nxg6 {[%clk 0:00:09]} 57. Bg7 {[%clk 0:00:04]}  Ne7 {[%clk 0:00:09]} 58. Bf8 {[%clk 0:00:04]}  Nf5 {[%clk 0:00:07]} 59. Bxc5 {[%clk 0:00:05]}  Kd7 {[%clk 0:00:04]} 60. Kxf5 {[%clk 0:00:05]} 1-0


[Site "https://www.chess.com"]

[Event "Titled Tuesday Blitz November 14 Early 2023"]
[White "Dowgird, Filip"]
[Black "Goldin, Roman"]
[WhiteFideId "1121235"]
[BlackFideId "2803860"]
[WhiteElo "2672"]
[BlackElo "2411"]
[Result "1-0"]
[Round "4"]
[TimeControl "180+1"]
[Date "2023.11.14"]
[WhiteClock "0:01:14"]
[BlackClock "0:00:00"]
[Board "96"]

1. d4 {[%clk 0:03:00]}  Nf6 {[%clk 0:02:59]} 2. Bg5 {[%clk 0:03:00]}  d5 {[%clk 0:02:55]} 3. Bxf6 {[%clk 0:03:00]}  gxf6 {[%clk 0:02:55]} 4. e3 {[%clk 0:02:58]}  e6 {[%clk 0:02:52]} 5. Nf3 {[%clk 0:02:58]}  c5 {[%clk 0:02:52]} 6. dxc5 {[%clk 0:02:58]}  Bxc5 {[%clk 0:02:51]} 7. Nbd2 {[%clk 0:02:58]}  Nc6 {[%clk 0:02:50]} 8. Be2 {[%clk 0:02:58]}  O-O {[%clk 0:02:42]} 9. a3 {[%clk 0:02:59]}  a6 {[%clk 0:02:41]} 10. c4 {[%clk 0:02:58]}  dxc4 {[%clk 0:02:38]} 11. Bxc4 {[%clk 0:02:56]}  b5 {[%clk 0:02:38]} 12. Be2 {[%clk 0:02:56]}  Bb7 {[%clk 0:02:38]} 13. Rc1 {[%clk 0:02:56]}  Qb6 {[%clk 0:02:30]} 14. Qc2 {[%clk 0:02:54]}  Be7 {[%clk 0:02:28]} 15. Qe4 {[%clk 0:02:51]}  Ne5 {[%clk 0:02:00]} 16. Qh4 {[%clk 0:02:46]}  Ng6 {[%clk 0:01:55]} 17. Qh6 {[%clk 0:02:25]}  Rfd8 {[%clk 0:01:54]} 18. O-O {[%clk 0:02:24]}  Bf8 {[%clk 0:01:26]} 19. Qh5 {[%clk 0:02:09]}  Rd5 {[%clk 0:01:25]} 20. Qh3 {[%clk 0:02:10]}  Rad8 {[%clk 0:01:16]} 21. Ne4 {[%clk 0:02:07]}  Bg7 {[%clk 0:01:15]} 22. b4 {[%clk 0:01:51]}  Bc8 {[%clk 0:00:41]} 23. Nc5 {[%clk 0:01:35]}  Bf8 {[%clk 0:00:26]} 24. Nb3 {[%clk 0:01:27]}  Be7 {[%clk 0:00:08]} 25. Nfd4 {[%clk 0:01:21]}  Bb7 {[%clk 0:00:02]} 26. Bf3 {[%clk 0:01:15]}  R5d7 {[%clk 0:00:00]} 27. Nc6 {[%clk 0:01:14]} 1-0


[Site "https://www.chess.com"]

[Event "Titled Tuesday Blitz November 14 Early 2023"]
[White "Skliarov, Viktor"]
[Black "Valle Maytin, Luis Enrique"]
[WhiteFideId "14106736"]
[BlackFideId "3503666"]
[WhiteElo "2671"]
[BlackElo "2369"]
[Result "1-0"]
[Round "4"]
[TimeControl "180+1"]
[Date "2023.11.14"]
[WhiteClock "0:00:25"]
[BlackClock "0:00:09"]
[Board "97"]

1. e4 {[%clk 0:02:50]}  c6 {[%clk 0:02:47]} 2. d4 {[%clk 0:02:47]}  d5 {[%clk 0:02:48]} 3. e5 {[%clk 0:02:40]}  Bf5 {[%clk 0:02:47]} 4. Nf3 {[%clk 0:02:39]}  e6 {[%clk 0:02:47]} 5. Be2 {[%clk 0:02:39]}  Nd7 {[%clk 0:02:47]} 6. O-O {[%clk 0:02:39]}  Ne7 {[%clk 0:02:47]} 7. a4 {[%clk 0:02:39]}  Qc7 {[%clk 0:02:42]} 8. a5 {[%clk 0:02:37]}  h6 {[%clk 0:02:39]} 9. a6 {[%clk 0:02:33]}  b6 {[%clk 0:02:38]} 10. Na3 {[%clk 0:02:33]}  g5 {[%clk 0:02:37]} 11. c4 {[%clk 0:02:32]}  Bg7 {[%clk 0:02:33]} 12. cxd5 {[%clk 0:02:26]}  exd5 {[%clk 0:02:33]} 13. Be3 {[%clk 0:02:18]}  Nf8 {[%clk 0:02:31]} 14. Rc1 {[%clk 0:02:15]}  Qd7 {[%clk 0:02:31]} 15. Ne1 {[%clk 0:01:57]}  Ne6 {[%clk 0:02:28]} 16. Nd3 {[%clk 0:01:46]}  O-O {[%clk 0:02:25]} 17. Nb4 {[%clk 0:01:44]}  Rac8 {[%clk 0:02:16]} 18. Qa4 {[%clk 0:01:42]}  Rfd8 {[%clk 0:02:14]} 19. Nxc6 {[%clk 0:01:18]}  Nxc6 {[%clk 0:02:10]} 20. Bb5 {[%clk 0:01:17]}  Qe7 {[%clk 0:01:21]} 21. Bxc6 {[%clk 0:01:13]}  Nf4 {[%clk 0:01:20]} 22. Bxf4 {[%clk 0:01:00]}  gxf4 {[%clk 0:01:19]} 23. Bb7 {[%clk 0:01:01]}  Rxc1 {[%clk 0:01:16]} 24. Rxc1 {[%clk 0:01:01]}  f6 {[%clk 0:01:11]} 25. exf6 {[%clk 0:00:48]}  Bxf6 {[%clk 0:01:09]} 26. Nb5 {[%clk 0:00:44]}  f3 {[%clk 0:01:02]} 27. Qb3 {[%clk 0:00:32]}  fxg2 {[%clk 0:00:57]} 28. Nxa7 {[%clk 0:00:31]}  Bxd4 {[%clk 0:00:50]} 29. Qg3+ {[%clk 0:00:25]}  Kh8 {[%clk 0:00:49]} 30. Nc6 {[%clk 0:00:25]}  Qd7 {[%clk 0:00:17]} 31. Nxd4 {[%clk 0:00:25]}  Be4 {[%clk 0:00:14]} 32. Qe5+ {[%clk 0:00:23]}  Kg8 {[%clk 0:00:12]} 33. Qe6+ {[%clk 0:00:23]}  Qxe6 {[%clk 0:00:12]} 34. Nxe6 {[%clk 0:00:24]}  Rd6 {[%clk 0:00:12]} 35. a7 {[%clk 0:00:23]}  Rxe6 {[%clk 0:00:10]} 36. a8=Q+ {[%clk 0:00:23]}  Kf7 {[%clk 0:00:11]} 37. Bxd5 {[%clk 0:00:24]}  Bxd5 {[%clk 0:00:09]} 38. Qxd5 {[%clk 0:00:25]} 1-0


[Site "https://www.chess.com"]

[Event "Titled Tuesday Blitz November 14 Early 2023"]
[White "Skvortsov, Andrei"]
[Black "Lebedev, Artem S."]
[WhiteFideId "24108600"]
[BlackFideId "34272747"]
[WhiteElo "2665"]
[BlackElo "2344"]
[Result "1-0"]
[Round "4"]
[TimeControl "180+1"]
[Date "2023.11.14"]
[WhiteClock "0:01:34"]
[BlackClock "0:00:00"]
[Board "98"]

1. e4 {[%clk 0:03:00]}  e5 {[%clk 0:02:55]} 2. d4 {[%clk 0:03:01]}  exd4 {[%clk 0:02:52]} 3. Qxd4 {[%clk 0:03:01]}  Nc6 {[%clk 0:02:52]} 4. Qd3 {[%clk 0:03:02]}  Nf6 {[%clk 0:02:53]} 5. Nc3 {[%clk 0:03:03]}  Bb4 {[%clk 0:02:53]} 6. Bd2 {[%clk 0:03:03]}  O-O {[%clk 0:02:53]} 7. O-O-O {[%clk 0:03:04]}  Re8 {[%clk 0:02:53]} 8. Nge2 {[%clk 0:03:04]}  d6 {[%clk 0:02:50]} 9. Bg5 {[%clk 0:03:02]}  h6 {[%clk 0:02:44]} 10. Bxf6 {[%clk 0:03:01]}  Qxf6 {[%clk 0:02:43]} 11. Nd5 {[%clk 0:03:02]}  Qd8 {[%clk 0:02:35]} 12. Nxb4 {[%clk 0:02:59]}  Nxb4 {[%clk 0:02:36]} 13. Qd2 {[%clk 0:03:00]}  Nxa2+ {[%clk 0:02:00]} 14. Kb1 {[%clk 0:02:58]}  Be6 {[%clk 0:01:59]} 15. Nf4 {[%clk 0:02:31]}  Qd7 {[%clk 0:01:44]} 16. Qa5 {[%clk 0:02:26]}  b6 {[%clk 0:01:22]} 17. Qa3 {[%clk 0:02:22]}  a5 {[%clk 0:00:48]} 18. Nxe6 {[%clk 0:02:20]}  Nb4 {[%clk 0:00:48]} 19. Nd4 {[%clk 0:02:13]}  Rxe4 {[%clk 0:00:40]} 20. f3 {[%clk 0:02:12]}  Re5 {[%clk 0:00:38]} 21. Bc4 {[%clk 0:02:03]}  Rae8 {[%clk 0:00:24]} 22. c3 {[%clk 0:01:58]}  Nc6 {[%clk 0:00:18]} 23. Bb5 {[%clk 0:01:54]}  Rxb5 {[%clk 0:00:18]} 24. Nxb5 {[%clk 0:01:54]}  Qf5+ {[%clk 0:00:18]} 25. Ka2 {[%clk 0:01:53]}  Qxb5 {[%clk 0:00:19]} 26. Rhe1 {[%clk 0:01:46]}  Rxe1 {[%clk 0:00:10]} 27. Rxe1 {[%clk 0:01:46]}  Ne5 {[%clk 0:00:09]} 28. Qb3 {[%clk 0:01:45]}  Qc6 {[%clk 0:00:04]} 29. Re4 {[%clk 0:01:39]}  Kh7 {[%clk 0:00:03]} 30. Qc2 {[%clk 0:01:39]}  Kh8 {[%clk 0:00:03]} 31. b3 {[%clk 0:01:38]}  f5 {[%clk 0:00:03]} 32. Re1 {[%clk 0:01:37]}  g6 {[%clk 0:00:03]} 33. f4 {[%clk 0:01:37]}  Nf7 {[%clk 0:00:02]} 34. Re6 {[%clk 0:01:36]}  Kg7 {[%clk 0:00:02]} 35. Qd2 {[%clk 0:01:35]}  Nd8 {[%clk 0:00:01]} 36. Qd4+ {[%clk 0:01:35]}  Kf7 {[%clk 0:00:00]} 37. Qf6+ {[%clk 0:01:34]} 1-0


[Site "https://www.chess.com"]